[Event "1000 GM Labor Day Super Swiss 2024"]
[Site "San Jose"]
[Date "2024.09.01"]
[Round "3.9"]
[White "Angeles Mercado, Anthony R"]
[Black "Macovei, Andrei"]
[Result "0-1"]
[Annotator "TA"]
[ECO "B30"]
[WhiteElo "2083"]
[BlackElo "2466"]
[PlyCount "86"]
[EventDate "2024.08.30"]
[EventType "swiss"]
[EventCountry "USA"]
[SourceTitle "playchess.com"]
[Source "ChessBase"]
[SourceQuality "1"]
[TimeControl "5400+30"]

{[%evp 9,86,31,37,37,54,40,29,35,35,32,30,31,25,25,39,39,41,23,22,6,16,0,25,22,30,36,16,5,39,25,28,31,29,11,25,7,22,29,27,25,17,25,22,0,-9,-225,-12,0,0,-224,-224,-228,-223,-227,-227,-236,-235,-422,-313,-264,-279,-286,-325,-310,-325,-29992,-29976,-6095,-313,-313,-313,-313,-311,-460,-459,-519,-519,-512,-504]} 1. e4 {[%emt 0:01:00]} c5 {[%emt 0:01:02]} 2. Nf3 {[%emt 0:00:46]} Nc6 {[%emt 0:03:11]} 3. Bb5 {[%emt 0:00:51]} e5 {[%emt 0:00:05]} 4. O-O {[%emt 0:01:00]} Bd6 {[%emt 0:00:22]} 5. c3 {[%emt 0:00:54]} a6 {[%emt 0:01:13]} 6. Ba4 {[%emt 0:00:31]} b5 {[%emt 0:00:16]} 7. Bc2 {[%emt 0:00:29]} Nge7 {[%emt 0:01:10]} 8. a4 {[%emt 0:02:58] White has an edge.} Rb8 {[%emt 0:02:55]} 9. axb5 {[%emt 0:04:05]} axb5 {[%emt 0:00:04]} 10. d4 {[%emt 0:04:57]} cxd4 {[%emt 0:05:29]} 11. cxd4 {[%emt 0:00:13]} exd4 {[%emt 0:00:05]} 12. Nxd4 {[%emt 0:07:43]} Qc7 {[%emt 0:01:19]} 13. h3 {[%emt 0:01:34]} O-O {[%emt 0:03:48]} 14. Be3 {[%emt 0:26:28]} Bh2+ {[%emt 0:11:00]} 15. Kh1 {[%emt 0:00:16] [#] Black must now prevent Nxc6.} Bf4 {[%emt 0:03:09]} 16. Nxc6 {[%emt 0:05:22]} Nxc6 {[%emt 0:01:42]} 17. Bxf4 {[%emt 0:11:30]} Qxf4 {[%emt 0:00:03]} 18. Qd2 {[%emt 0:00:50]} Qe5 {[%emt 0:11:45]} (18... Qxd2 {simplifies} 19. Nxd2 Nd4 20. Rfc1 Bb7) 19. Nc3 {[%emt 0:01:05]} b4 {[%emt 0:02:46]} 20. Nd5 {[%emt 0:07:03]} Qxb2 {[%emt 0:12:02] ...b3 would now be deadly.} 21. Rfb1 {[%emt 0:00:32]} Qe5 {[%emt 0:03:51][%cal Ob4b3]} 22. f4 {[%emt 0:00:22]} (22. Nxb4 $2 Rxb4 23. f4 Qd4 $19) 22... Qd6 {[%emt 0:01:28]} 23. e5 {[%emt 0:00:39]} Qh6 {[%emt 0:00:31]} 24. Nxb4 {[%emt 0:00:58]} Nxe5 {[%emt 0:02:26]} 25. Nd5 $1 {[%emt 0:01:54][%cal Bb4d5,Bd5e7,Be7f5][%mdl 32]} Bb7 {[%emt 0:01:49]} 26. Rxb7 {[%emt 0:03:21]} Rxb7 {[%emt 0:00:29]} 27. Ne7+ {[%emt 0:00:54]} Kh8 {[%emt 0:00:01] aiming for ...Nc6.} 28. Nf5 $1 {[%emt 0:00:05]} Nc4 {[%emt 0:03:26]} 29. Qd5 {[%emt 0:12:55] White is on the road to losing.} (29. Qd3 $1 $11 Qf6 (29... Qxf4 $2 30. Nd6 $18) 30. Nd4) 29... Qf6 $19 {[%emt 0:00:44]} (29... Qxf4 $2 30. Qxb7 g6 31. Qb4 $18) 30. Ra4 {[%emt 0:02:19]} Nb6 {[%emt 0:09:18][%csl LRa4,LRd5][%cal Bc4b6,Bb6a4,Ba4c3,Bc3e2][%mdl 32]} 31. Qxb7 {[%emt 0:00:06]} Nxa4 {[%emt 0:00:03]} 32. Qb4 {[%emt 0:00:51] Dodges Nc5} Ra8 {[%emt 0:01:03] Strongly threatening ...Nc3.} 33. Nd6 $2 {[%emt 0:00:14]} (33. Be4 {is the only way for White.} d5 34. Bxd5) 33... Nc3 {[%emt 0:02:05]} 34. Bb3 {[%emt 0:00:49]} g6 {[%emt 0:01:05]} 35. Nxf7+ {[%emt 0:01:07]} Kg7 {[%emt 0:00:01] Hoping for ...Ne2.} 36. Ne5 {[%emt 0:01:14]} Ne2 {[%emt 0:00:23] ( -> ...Ra1+)} 37. Qe4 $2 {[%emt 0:00:34] [#]} (37. Qc4 $19 Ra1+ (37... Nxf4 $2 38. Ng4 $19) 38. Kh2 Qxf4+ 39. Qxf4 Nxf4 40. Nxd7) 37... Ra1+ {[%emt 0:01:51]} 38. Kh2 {[%emt 0:00:05]} Qxf4+ $2 {[%emt 0:00:05]} (38... Nxf4 39. Qd4 d6 40. Qxa1 $11) (38... Rh1+ 39. Kxh1 Ng3+ (39... Nxf4 $2 {perishes.} 40. Qd4 $18) 40. Kg1 Nxe4) 39. Qxf4 {[%emt 0:00:14]} Nxf4 {[%emt 0:00:01]} 40. Nxd7 {[%emt 0:00:19]} Rc1 {[%emt 0:01:35]} 41. Ne5 {[%emt 0:00:34]} (41. Ba4 {was necessary.}) 41... Re1 {[%emt 0:01:22] Black is clearly winning.} 42. Ng4 {[%emt 0:01:18]} Re2 {[%emt 0:00:36] Inhibits Nf2.} 43. Kg3 {[%emt 0:00:26]} g5 {[%emt 0:01:22] Weighted Error Value: White=0.41/Black=0.22 (precise) .  Loses game:     	White=1     	---        Missed win:     	---       	Black=1      Mistake:       	White=3     	---        Inaccurate:     	White=1     	Black=1      OK:         	White=12    	Black=17     Best:        	White=2     	Black=2      Strong:       	White=2     	---} ({Less strong is} 43... Rxg2+ 44. Kxf4 Rd2 45. Ke3 $15) 0-1

[Event "1000 GM Labor Day Super Swiss 2024"]
[Site "San Jose"]
[Date "2024.09.01"]
[Round "3.10"]
[White "Batchuluun, Tsegmed"]
[Black "Tang, Dylan"]
[Result "1-0"]
[Annotator "TA"]
[ECO "D36"]
[WhiteElo "2458"]
[BlackElo "2092"]
[PlyCount "41"]
[EventDate "2024.08.30"]
[EventType "swiss"]
[EventCountry "USA"]
[SourceTitle "playchess.com"]
[Source "ChessBase"]
[SourceQuality "1"]
[TimeControl "5400+30"]

{[%evp 15,41,35,29,22,27,20,43,34,51,48,71,65,62,71,50,42,91,57,90,91,78,88,89,54,322,307,775,764]} 1. d4 {[%emt 0:00:02]} d5 {[%emt 0:01:16]} 2. c4 {[%emt 0:00:05]} e6 {[%emt 0:00:10]} 3. Nc3 {[%emt 0:00:08]} Nf6 {[%emt 0:00:25]} 4. cxd5 {[%emt 0:00:05]} exd5 {[%emt 0:00:12]} 5. Bg5 {[%emt 0:00:05]} c6 {[%emt 0:00:19]} 6. e3 {[%emt 0:00:04]} Be7 {[%emt 0:00:11]} 7. Bd3 {[%emt 0:00:05]} Nbd7 {[%emt 0:04:00][%cal Bb8d7,Bd7f8,Bf8e6][%mdl 32]} 8. Qc2 {[%emt 0:01:25]} Nf8 {[%emt 0:02:47]} 9. O-O-O {[%emt 0:00:06]} Ne6 {[%emt 0:00:04]} 10. Bxf6 {[%emt 0:00:05]} Bxf6 {[%emt 0:00:06]} 11. f4 {[%emt 0:00:01][%cal Og1f3] White is slightly better.} g6 {[%emt 0:06:42]} 12. Nf3 {[%emt 0:00:05]} Ng7 {[%emt 0:21:11]} 13. h3 {[%emt 0:00:05] Prevents Bg4} Bf5 {[%emt 0:03:27]} 14. g4 {[%emt 0:00:04]} Bxd3 {[%emt 0:00:52]} 15. Qxd3 {[%emt 0:00:05]} Qd6 {[%emt 0:05:37]} (15... Be7 $14) 16. Ne5 {[%emt 0:05:29]} Qe6 {[%emt 0:06:43]} 17. e4 {[%emt 0:01:01] White has more active pieces.} dxe4 {[%emt 0:03:17]} 18. Nxe4 {[%emt 0:04:35] Hoping for d5.} O-O-O {[%emt 0:05:58]} 19. Qb3 {[%emt 0:23:32] Qxe6+ would now be deadly.} Rhe8 {[%emt 0:08:25][%mdl 8192] [#]} (19... Bxe5 $14 20. dxe5 Qxb3 21. axb3 Kc7) 20. d5 $1 $18 {[%emt 0:25:58]} (20. Nxf6 Qxf6 21. Qxf7 (21. Nxf7 $2 Rd5 $17) 21... Rf8 22. Qxf6 Rxf6 $17) 20... cxd5 {[%emt 0:01:20]} (20... Rxd5 21. Rxd5 Be7 (21... cxd5 $2 {loses.} 22. Nxf6 Qxf6 23. Qc3+ Kd8 24. Qa5+ Qb6 25. Qxd5+ Kc8 26. Qd7+ Kb8 27. Qxe8+ Nxe8 28. Nd7+ Kc7 29. Nxb6 $18)) 21. Nxf6 {[%emt 0:00:35] Weighted Error Value: White=0.07 (flawless) /Black=0.52.  Loses game:     	---       	Black=1      Mistake:       	---       	Black=2      Inaccurate:     	White=2     	Black=1      OK:         	White=4     	Black=3      Best:        	White=2     	Black=1      Strong:       	White=1     	---} 1-0

[Event "1000 GM Labor Day Super Swiss 2024"]
[Site "San Jose"]
[Date "2024.09.01"]
[Round "3.11"]
[White "Yim, Sung Ho"]
[Black "Karthi, Jashith"]
[Result "1-0"]
[Annotator "TA"]
[ECO "D31"]
[WhiteElo "2291"]
[BlackElo "2066"]
[PlyCount "119"]
[EventDate "2024.08.30"]
[EventType "swiss"]
[EventCountry "USA"]
[SourceTitle "playchess.com"]
[Source "ChessBase"]
[SourceQuality "1"]
[TimeControl "5400+30"]

{[%evp 13,119,31,44,20,108,100,142,48,38,39,97,76,79,66,69,20,39,40,103,105,116,104,103,104,110,114,134,79,91,67,62,60,36,62,46,24,27,42,29,7,11,9,63,70,70,73,77,62,79,72,73,70,75,77,79,77,89,79,79,52,56,53,122,99,207,203,231,225,264,226,268,248,275,268,389,382,487,480,568,585,652,653,1068,426,419,454,693,693,678,594,807,716,1685,1682,1354,1210,1170,1046,29941,3208,2697,2542,29979,29980,29980,29981,29980,29981]} 1. d4 {[%emt 0:12:06]} d5 {[%emt 0:00:08]} 2. c4 {[%emt 0:00:05]} e6 {[%emt 0:00:04]} 3. Nc3 {[%emt 0:00:26]} a6 {[%emt 0:00:10]} 4. cxd5 {[%emt 0:00:34]} exd5 {[%emt 0:00:14]} 5. Qb3 {[%emt 0:00:46]} c5 {[%emt 0:00:18]} 6. Nxd5 {[%emt 0:00:45]} Be6 {[%emt 0:03:40]} 7. e4 {[%emt 0:00:37]} Ne7 {[%emt 0:00:25]} 8. Bg5 {[%emt 0:04:23]} (8. Qxb7 Nxd5 9. Qxa8 cxd4 $16) (8. dxc5 {simplifies} Nxd5 9. exd5 Qxd5 10. Qxd5 Bxd5 11. Be3) 8... Bxd5 {[%emt 0:05:13]} (8... f6 $1 $11) 9. exd5 $16 {[%emt 0:01:44]} Qxd5 {[%emt 0:03:04]} 10. Qxd5 {[%emt 0:18:21]} ({White must play} 10. Bc4 $1 $16 {[%cal Rc4d5]} Qxg5 11. Bxf7+ (11. Qxb7 Nec6 $16) 11... Kd8 12. Qxb7) 10... Nxd5 $14 {[%emt 0:00:04]} 11. O-O-O {[%emt 0:01:37]} Nc7 {[%emt 0:10:58]} (11... h6 $14 12. dxc5 hxg5 13. Rxd5 Nd7) 12. Re1+ {[%emt 0:11:58]} Kd7 {[%emt 0:00:25]} 13. Nf3 {[%emt 0:02:16]} f6 $1 {[%emt 0:02:42]} 14. Be3 {[%emt 0:02:57]} (14. Bh4 $14) 14... Nd5 $11 {[%emt 0:05:54]} 15. Bd2 {[%emt 0:00:38]} cxd4 {[%emt 0:04:21]} ({Better is} 15... Nc6 $14) 16. Bc4 $16 {[%emt 0:00:55]} Nc7 {[%emt 0:11:32]} 17. Nxd4 {[%emt 0:01:15]} Nc6 {[%emt 0:01:11]} 18. Nxc6 {[%emt 0:03:13]} Kxc6 {[%emt 0:00:56]} 19. Be2 {[%emt 0:06:22]} Bc5 {[%emt 0:27:55] [#]} 20. Bf3+ {[%emt 0:00:47]} (20. Ba5 $142 $1) 20... Kb6 $16 {[%emt 0:02:23]} 21. Be3 {[%emt 0:10:19]} Ne6 $1 {[%emt 0:02:53]} 22. Bxc5+ {[%emt 0:02:54]} Nxc5 {[%emt 0:00:08]} 23. Re7 {[%emt 0:00:07]} Rac8 {[%emt 0:00:55]} 24. Kb1 {[%emt 0:00:27]} (24. Rxg7 $2 Ne6+ 25. Kb1 Nxg7 $19) 24... Rc7 {[%emt 0:00:58]} 25. Rxc7 {[%emt 0:00:37]} Kxc7 {[%emt 0:00:02]} 26. Rc1 {[%emt 0:00:07]} Kb6 $1 {[%emt 0:00:49]} 27. Rd1 {[%emt 0:01:11]} Kc7 {[%emt 0:08:03]} ({Black should play} 27... a5 $11) 28. b4 $1 $14 {[%emt 0:01:52]} Ne6 {[%emt 0:04:49]} 29. Re1 {[%emt 0:01:32]} Re8 {[%emt 0:00:47]} 30. Bd5 {[%emt 0:04:34]} Kd6 {[%emt 0:00:09]} 31. Bxb7 {[%emt 0:01:51]} Rb8 {[%emt 0:00:11]} 32. Rd1+ {[%emt 0:01:06]} Ke7 {[%emt 0:00:47]} 33. Bxa6 {[%emt 0:00:55]} Rxb4+ {[%emt 0:00:02]} 34. Ka1 {[%emt 0:01:02]} Nc5 {[%emt 0:01:20]} 35. Be2 {[%emt 0:01:03]} Ne4 {[%emt 0:00:28]} 36. f3 {[%emt 0:03:43]} Nc3 {[%emt 0:00:14]} 37. Re1 {[%emt 0:00:01]} Kf7 {[%emt 0:00:44]} (37... Kd6 $14) 38. Bd3 {[%emt 0:00:38]} Ra4 {[%emt 0:00:50] [#]} (38... Rd4 $16 39. Bc2 (39. Bxh7 g6 $11) 39... Rd2) 39. Kb2 $1 $18 {[%emt 0:00:18]} (39. Bxh7 $2 Rxa2#) 39... Nd5 {[%emt 0:01:23]} 40. Re4 {[%emt 0:01:12]} (40. Bxh7 g6 $11) 40... Ra5 {[%emt 0:00:15]} 41. Bc4 {[%emt 0:03:46]} Kg6 {[%emt 0:00:19]} 42. Bb3 {[%emt 0:00:00]} Kf5 {[%emt 0:01:16]} 43. g3 {[%emt 0:00:00]} Rb5 {[%emt 0:00:47]} (43... h5 {is a better defense.} 44. a3 Kg5) 44. a4 $18 {[%emt 0:00:00]} Rb7 {[%emt 0:00:25]} 45. a5 {[%emt 0:00:02]} Rb5 {[%emt 0:00:20]} 46. a6 {[%emt 0:00:22]} Nb6 {[%emt 0:00:44]} 47. a7 {[%emt 0:01:34]} Ra5 {[%emt 0:00:29]} 48. Rb4 {[%emt 0:00:32]} (48. Bc2 $142 {Re7+ would kill now.} Rxa7 49. Re7+ Kg5 50. Rxa7) 48... Na8 {[%emt 0:00:47]} 49. Rb7 {[%emt 0:00:14]} Kg6 {[%emt 0:00:26]} (49... Ke5 $142 50. Kc3 (50. Rxg7 Kd6 $18) 50... Kd6) 50. Bc2+ $18 {[%emt 0:00:11]} Kh6 {[%emt 0:00:14]} 51. g4 {[%emt 0:00:39]} g6 {[%emt 0:00:15]} 52. h4 {[%emt 0:00:15]} Ra6 {[%emt 0:00:22]} 53. Bd3 {[%emt 0:00:57]} Ra5 {[%emt 0:00:11]} 54. Kc3 {[%emt 0:00:31]} Ra3+ {[%emt 0:00:18]} 55. Kd4 {[%emt 0:00:11]} Ra5 {[%emt 0:00:10]} 56. Be4 {[%emt 0:00:33]} (56. Rf7 $142 Nb6 57. Be4 (57. Rxf6 Ra4+ 58. Kc5 Nd7+ 59. Kb5 Rxa7 $18) 57... Ra1 58. Kc5 (58. Rxf6 Ra4+ 59. Kc5 Rxa7 $18) 58... Na4+ 59. Kd6 Nb6 60. Ke6 (60. Rxf6 Rxa7 61. f4 Kg7 $11) 60... Ra6 61. Bb7 (61. Kxf6 Nc4+ $18) (61. Bc6 Na8 $18)) 56... Ra4+ $18 {[%emt 0:00:10]} 57. Ke3 {[%emt 0:00:09]} Ra3+ {[%emt 0:00:14]} 58. Kf4 {[%emt 0:00:08]} Ra5 {[%emt 0:00:03]} 59. g5+ {[%emt 0:00:44]} fxg5+ {[%emt 0:00:09]} 60. hxg5+ {[%emt 0:00:02]} 1-0

[Event "1000 GM Labor Day Super Swiss 2024"]
[Site "San Jose"]
[Date "2024.09.01"]
[Round "3.12"]
[White "Chinni, Rishabh"]
[Black "Widjaja, Luke"]
[Result "1-0"]
[Annotator "TA"]
[ECO "C96"]
[WhiteElo "2220"]
[BlackElo "2056"]
[PlyCount "53"]
[EventDate "2024.08.30"]
[EventType "swiss"]
[EventCountry "USA"]
[SourceTitle "playchess.com"]
[Source "ChessBase"]
[SourceQuality "1"]
[TimeControl "5400+30"]

{[%evp 25,52,2,0,0,-4,-4,-11,0,23,19,70,54,76,71,79,60,53,14,131,122,333,326,628,629,575,542,29998,29999,29999]} 1. e4 {[%emt 0:00:02]} e5 {[%emt 0:00:03]} 2. Nf3 {[%emt 0:00:09]} Nc6 {[%emt 0:00:05]} 3. Bb5 {[%emt 0:00:02]} a6 {[%emt 0:00:04]} 4. Ba4 {[%emt 0:00:03]} Nf6 {[%emt 0:00:04]} 5. O-O {[%emt 0:00:05]} Be7 {[%emt 0:00:21]} 6. Re1 {[%emt 0:01:27]} b5 {[%emt 0:00:09]} 7. Bb3 {[%emt 0:00:03]} d6 {[%emt 0:00:07]} 8. c3 {[%emt 0:00:04][%cal Bc2c3,Bc3d4][%mdl 32]} O-O {[%emt 0:00:09]} 9. h3 {[%emt 0:00:04]} Na5 {[%emt 0:00:03]} 10. Bc2 {[%emt 0:00:04]} c5 {[%emt 0:00:05]} 11. d4 {[%emt 0:00:05]} Qc7 {[%emt 0:00:09]} 12. b3 {[%emt 0:01:12]} cxd4 {[%emt 0:03:15]} 13. cxd4 {[%emt 0:00:08]} Nc6 {[%emt 0:00:13]} 14. Bb2 {[%emt 0:01:31]} Nb4 {[%emt 0:06:12]} 15. Bd3 {[%emt 0:02:55][%cal Rd4e5]} Nxd3 {[%emt 0:13:57]} 16. Qxd3 {[%emt 0:00:16][%cal Rd4e5] The position is equal.} d5 {[%emt 0:21:20]} 17. Nc3 {[%emt 0:06:15]} exd4 {[%emt 0:04:30]} ({Black should try} 17... dxe4 $11 18. Nxe4 Nxe4 19. Qxe4 Bb7 20. Qxe5 Bd6) 18. Nxd5 $14 {[%emt 0:13:40]} ({Much worse is} 18. Qxd4 $6 Bc5 19. Qd2 dxe4 20. Nxe4 Nxe4 21. Rxe4 Qd6 $11) 18... Nxd5 {[%emt 0:02:00]} 19. exd5 {[%emt 0:00:27][%cal Od3e4] Hoping for Qe4!} Bb7 {[%emt 0:03:46]} 20. Nxd4 {[%emt 0:03:52] White is more active.} Bf6 $1 {[%emt 0:02:52][%cal Oc7d7]} 21. Rad1 {[%emt 0:20:53]} Rad8 {[%emt 0:05:22]} (21... Qc5 $11) 22. Ba3 $40 {[%emt 0:04:58][%cal Bb2a3,Ba3f8,Bf8d6][%mdl 160] White goes for the king.} Rxd5 $2 {[%emt 0:28:54] Black cannot hold the game after this.} (22... Rfe8 $16 {is a better defense.}) 23. Bxf8 $18 {[%emt 0:00:18][%cal Oe1e8] [#] And now Re8! would win.} Bxd4 $2 {[%emt 0:01:21]} (23... Rxd4 24. Re8 Qc6 25. Bc5+ Qxe8 26. Bxd4 Bh4) 24. Re8 {[%emt 0:01:02][%cal Rf8a3]} Qc6 {[%emt 0:02:47]} 25. Qe4 {[%emt 0:05:42] Ba3+ would kill now.} f5 {[%emt 0:01:39]} 26. Bd6+ {[%emt 0:00:15]} Kf7 {[%emt 0:00:07]} 27. Qe6# {[%emt 0:00:03] Weighted Error Value: White=0.05 (flawless) /Black=0.88.  Loses game:     	---       	Black=1      Mistake:       	---       	Black=3      Inaccurate:     	White=1     	---        OK:         	White=1     	Black=3      Best:        	White=5     	Black=1      Strong:       	---       	Black=1} 1-0

[Event "1000 GM Labor Day Super Swiss 2024"]
[Site "San Jose"]
[Date "2024.09.01"]
[Round "3.13"]
[White "Gui, Suyuan"]
[Black "Guo, Andrew"]
[Result "0-1"]
[Annotator "TA"]
[ECO "B30"]
[WhiteElo "2033"]
[BlackElo "2207"]
[PlyCount "120"]
[EventDate "2024.08.30"]
[EventType "swiss"]
[EventCountry "USA"]
[SourceTitle "playchess.com"]
[Source "ChessBase"]
[SourceQuality "1"]
[TimeControl "5400+30"]

{[%evp 24,120,-37,-52,-49,-61,-40,-52,-47,-46,-32,-41,-16,-67,-10,-33,0,-74,0,-49,-32,-85,-73,-76,-95,-88,-87,-90,-90,-68,-11,-59,-38,-93,-83,-91,-81,-66,-70,-74,-77,-81,-75,-102,-91,-94,-95,-104,-104,-102,-102,-122,-109,-124,-110,-123,0,-117,-109,-128,-128,-115,-102,-102,-102,-117,-86,-89,-86,-106,-84,-84,-84,-90,-90,-445,-395,-366,-123,-486,-486,-486,-486,-486,-462,-432,-422,-525,-507,-1526,-1145,-1329,-1314,-5389,-1678,-5385,-1285,-29981,-29982]} 1. e4 {[%emt 0:00:04]} c5 {[%emt 0:00:12]} 2. Nf3 {[%emt 0:00:05]} Nc6 {[%emt 0:00:03]} 3. Bb5 {[%emt 0:00:05]} Nf6 {[%emt 0:01:13]} 4. e5 {[%emt 0:02:18]} Nd5 {[%emt 0:00:37]} 5. O-O {[%emt 0:00:39]} Nc7 {[%emt 0:00:17]} 6. Be2 {[%emt 0:02:42] B30: Sicilian: 2...Nc6 3 Bb5, lines without ...g6.} g6 {[%emt 0:04:20]} 7. c3 {[%emt 0:02:12]} Bg7 {[%emt 0:01:30]} 8. d4 {[%emt 0:00:25]} cxd4 {[%emt 0:00:10]} 9. cxd4 {[%emt 0:00:08]} d6 {[%emt 0:00:06]} 10. exd6 {[%emt 0:04:19]} Qxd6 {[%emt 0:00:23]} 11. Be3 {[%emt 0:02:42]} Bg4 $146 {[%emt 0:04:56]} ({Predecessor:} 11... O-O 12. Qc1 Nd5 13. Nc3 Bg4 14. h3 Bf5 15. Rd1 Rfd8 16. Qd2 Nxe3 17. fxe3 Bh6 {0-1 Kovac,M (2139)-Horvath,T (2386) SLO-chT1 East 2014 (1)}) 12. Qa4 {[%emt 0:06:29]} O-O {[%emt 0:14:56]} 13. Nbd2 {[%emt 0:10:07]} Nd5 {[%emt 0:02:54]} 14. h3 {[%emt 0:06:47]} Bf5 {[%emt 0:03:35]} 15. Nc4 {[%emt 0:02:58]} Qd8 {[%emt 0:15:30]} 16. Rac1 {[%emt 0:09:19]} Rb8 {[%emt 0:04:31]} 17. Qb3 {[%emt 0:06:42]} Be6 {[%emt 0:01:43]} 18. Ng5 {[%emt 0:05:57]} (18. Rfd1 $11) 18... Bd7 {[%emt 0:02:23]} ({But not} 18... Bxd4 $6 19. Rcd1 Bxe3 20. Nxe3 $11) ({Better is} 18... Nxe3 $15 19. Nxe6 Nxd4 20. Qxe3 Nxe6) 19. Nf3 {[%emt 0:01:31]} Be6 {[%emt 0:08:42]} 20. Ng5 {[%emt 0:01:12]} Bf5 {[%emt 0:01:00]} (20... Bxd4 21. Rcd1 Bxe3 22. Nxe3 $11) (20... Nxe3 $5 21. Nxe6 Nxd4 22. Qxe3 Nxe6 $11) 21. Nf3 {[%emt 0:01:00]} Nxe3 {[%emt 0:01:24]} 22. Qxe3 {[%emt 0:06:15]} (22. fxe3 $15 Be6 23. Qd3) 22... Nxd4 {[%emt 0:10:24]} 23. Rfd1 {[%emt 0:00:26]} Nxe2+ {[%emt 0:00:27]} 24. Qxe2 {[%emt 0:00:07]} Qe8 $1 {[%emt 0:00:13]} 25. Nd4 {[%emt 0:02:42]} Bxd4 {[%emt 0:01:50]} 26. Rxd4 {[%emt 0:00:11]} Be6 {[%emt 0:00:16]} (26... Rd8 $15 27. Rxd8 Qxd8) 27. b3 {[%emt 0:01:48]} (27. Qe3 $11) 27... Qb5 {[%emt 0:00:22]} 28. Rcd1 {[%emt 0:00:56]} (28. Qd2 $15) 28... Rbc8 $17 {[%emt 0:03:22]} 29. Qe4 {[%emt 0:02:19]} Rfe8 {[%emt 0:01:57]} 30. Ne3 {[%emt 0:01:15]} Qc6 {[%emt 0:01:06]} 31. Qd3 {[%emt 0:03:21]} Kg7 {[%emt 0:01:49]} 32. Qe2 {[%emt 0:05:11]} Rc7 {[%emt 0:01:12]} 33. Nd5 {[%emt 0:01:42]} Bxd5 {[%emt 0:00:59]} 34. Rxd5 {[%emt 0:00:59]} Qf6 {[%emt 0:00:08]} 35. Rd7 {[%emt 0:04:59]} Rec8 {[%emt 0:00:45]} 36. Rxc7 {[%emt 0:02:44]} Rxc7 {[%emt 0:00:11]} 37. Qd2 {[%emt 0:00:51]} Rc6 {[%emt 0:00:26]} 38. Re1 {[%emt 0:01:07]} Rd6 {[%emt 0:00:58]} 39. Qc2 {[%emt 0:00:39]} Rc6 {[%emt 0:00:26]} 40. Qd2 $1 {[%emt 0:00:19]} e6 {[%emt 0:00:06]} 41. Rc1 {[%emt 0:01:31]} Rxc1+ {[%emt 0:01:45]} 42. Qxc1 {[%emt 0:00:06]} Qe5 {[%emt 0:00:02]} 43. Qd2 {[%emt 0:00:48]} h5 {[%emt 0:00:21]} 44. h4 {[%emt 0:01:35]} b6 {[%emt 0:00:21]} 45. g3 {[%emt 0:00:09]} Qc5 {[%emt 0:00:37]} 46. Qb2+ {[%emt 0:01:44]} e5 {[%emt 0:00:01]} 47. Qd2 {[%emt 0:00:13]} Qd4 {[%emt 0:01:25]} 48. Qc2 {[%emt 0:00:42]} e4 {[%emt 0:00:27]} 49. Qc7 $2 {[%emt 0:01:20][%mdl 8192]} (49. Qc1 $17) 49... e3 $19 {[%emt 0:01:22]} 50. fxe3 {[%emt 0:00:16] [#]} Qxe3+ $2 {[%emt 0:05:47]} (50... Qa1+ $1 $19 51. Kg2 Qxa2+ 52. Kf3 Qxb3 53. Qxa7 Qd1+ 54. Kg2 Qe2+ 55. Kh1 Qxe3) 51. Kg2 $2 {[%emt 0:00:42][%mdl 8192] [#]} (51. Kf1 $17) 51... Qe2+ $1 $19 {[%emt 0:00:29]} 52. Kh3 {[%emt 0:00:15]} Qxa2 {[%emt 0:00:34]} 53. Qc3+ {[%emt 0:00:32]} Kg8 {[%emt 0:00:32]} ({Much less strong is} 53... Kh7 54. Qc4 Qf2 55. b4 $19) 54. Qe3 {[%emt 0:00:17]} Qb2 {[%emt 0:00:35]} 55. Qe8+ {[%emt 0:00:23]} Kg7 {[%emt 0:00:09]} 56. Qa4 {[%emt 0:00:29]} (56. Qe3 $142) 56... a5 $19 {[%emt 0:00:21]} 57. Qb5 {[%emt 0:00:10]} Qf2 {[%emt 0:00:54]} 58. Qa4 {[%emt 0:00:53]} Kh7 {[%emt 0:01:57]} (58... Qg1 $142 59. Qe4 Qd1) 59. Qa1 {[%emt 0:01:37]} Qe2 {[%emt 0:01:03]} (59... Qf3 $142 60. Kh2 Qxb3) 60. Qf6 {[%emt 0:00:26]} Qe6+ {[%emt 0:00:02]} 0-1